bitfinex/quotes_ETHUSD_20250808
["timestamp","ask_amount","ask_price","bid_price","bid_amount"]
[1754667631609,0.78836358,3938.7,3936.2,2.7904821]
[1754667631610,0.78836358,3938.7,3938.6,2.53897323]
[1754667631813,0.78836358,3938.7,3938.6,3.47847055]
[1754667632026,4.592,3939.3,3938.6,0.25389732]
[1754667632200,0.4281,3940.2,3937.9,0.2124]
[1754667632201,0.4818,3939.9,3937.9,0.2124]
[1754667632405,0.4818,3939.9,3938.0,0.4732]
[1754667632406,4.609,3939.8,3938.0,0.4732]
[1754667632645,2.53826433,3939.7,3938.0,6.01255219]
[1754667632797,4.608,3939.6,3938.1,0.02539295]
[1754667632998,0.19306298,3940.5,3938.6,3.0]
[1754667632999,0.4818,3940.5,3938.6,3.0]
[1754667633200,4.608,3940.0,3938.9,2.53877986]
[1754667633423,0.55,3939.9,3938.7,1.36159268]
[1754667633604,0.9099,3939.8,3937.8,0.001]
[1754667633932,1.4599,3939.8,3937.8,0.001]
[1754667634134,1.4599,3939.7,3937.8,0.001]
[1754667634429,0.55,3939.5,3937.8,0.001]
[1754667634631,0.44599,3939.6,3937.8,0.001]
[1754667634632,3.08942456,3937.9,3937.8,0.001]
[1754667634831,9.18342456,3937.9,3937.8,0.001]
[1754667635034,14.70132456,3937.9,3937.8,0.001]
[1754667635229,14.95132456,3937.9,3937.8,0.001]
[1754667635397,2.53987605,3937.2,3937.1,0.03]
[1754667635596,7.14487605,3937.2,3937.1,0.03]
[1754667635812,7.15587605,3937.2,3937.1,0.03]
[1754667636222,2.14625578,3943.2,3937.1,0.03]
[1754667636223,0.4818,3937.8,3937.1,0.03]
[1754667636440,6.344,3937.9,3937.1,0.03]
[1754667636441,4.613,3937.7,3937.1,0.03]
[1754667636733,2.53961804,3937.6,3937.1,0.03]
[1754667636932,8.24826665,3937.7,3937.1,0.03]
[1754667636933,1.0957,3937.7,3937.1,0.03]
[1754667637097,6.344,3937.9,3937.1,0.03]
[1754667637297,4.61,3937.8,3937.1,0.03]
[1754667637508,2.53956051,3937.7,3937.1,0.03]
[1754667637729,4.61,3937.8,3937.1,0.03]
[1754667637935,2.53972159,3937.5,3937.1,0.03]
[1754667638135,6.094,3937.9,3937.1,0.03]
[1754667638350,4.611,3937.8,3937.1,0.03]
[1754667638748,2.53975051,3937.4,3937.1,0.03]
[1754667638948,6.094,3937.9,3937.1,0.03]
[1754667638949,4.611,3937.3,3937.1,0.03]
[1754667639329,6.5221,3937.9,3937.1,0.03]
[1754667639529,2.53987605,3937.2,3937.1,0.03]
[1754667639720,7.14487605,3937.2,3937.1,0.03]
[1754667639919,7.62667605,3937.2,3937.1,0.03]
[1754667640653,3.08994056,3937.1,3937.0,1e-08]
[1754667640819,3.99984056,3937.1,3937.0,1e-08]
[1754667641219,4.12704056,3937.1,3937.0,1e-08]
[1754667641418,5.53321071,3937.1,3937.0,1e-08]
[1754667642062,8.53321071,3937.1,3937.0,1e-08]
[1754667642230,4.97791071,3937.1,3937.0,1e-08]
[1754667642434,3.02174056,3937.1,3937.0,1e-08]
[1754667642634,7.14194056,3937.1,3937.0,1e-08]
[1754667642956,3.44984056,3937.1,3937.0,1e-08]
[1754667643140,8.05184056,3937.1,3937.0,1e-08]
[1754667643345,8.60184056,3937.1,3937.0,1e-08]
[1754667643548,9.74100997,3937.1,3937.0,1e-08]
[1754667643723,2.54045677,3936.3,3936.2,0.15000001]
[1754667644054,2.54038155,3936.5,3936.2,0.15000001]
[1754667644257,2.54007593,3936.9,3936.2,0.15000001]
[1754667644422,2.54019864,3936.7,3936.2,0.15000001]
[1754667644619,2.54020077,3936.7,3936.2,0.15000001]
[1754667644841,2.54027397,3936.6,3936.2,0.15000001]
[1754667645042,2.54012584,3936.9,3936.2,0.15000001]
[1754667645324,4.592,3936.8,3936.2,0.15000001]
[1754667645543,0.4818,3937.8,3936.2,0.15000001]
[1754667645744,0.4732,3937.8,3936.4,2.54039223]
[1754667645957,7.12855667,3937.7,3936.7,2.54018251]
[1754667646158,4.589,3937.7,3936.3,0.4732]
[1754667646437,4.589,3937.7,3936.2,0.47038396]
[1754667646438,3.08968253,3937.5,3936.2,0.15000001]
[1754667646638,0.55,3937.2,3936.2,0.15000001]
[1754667646866,2.54045677,3936.3,3936.2,0.15000001]
[1754667647173,1.2649,3937.1,3936.2,0.15000001]
[1754667647471,2.54045677,3936.3,3936.2,0.15000001]
[1754667647673,0.4818,3937.1,3936.2,0.15000001]
[1754667647990,2.54045677,3936.3,3936.2,0.15000001]
[1754667648284,7.12445677,3936.3,3936.2,0.15000001]
[1754667648937,4.584,3936.3,3936.2,0.15000001]
[1754667649194,0.4732,3937.1,3936.2,0.15000001]
[1754667649402,0.95766019,3937.0,3935.1,0.04]
[1754667649543,1.14377472,3937.1,3935.3,3.0]
[1754667649544,0.4732,3937.1,3935.3,3.0]
[1754667649741,0.4732,3937.1,3935.2,5.63009566]
[1754667649742,0.52956019,3937.6,3935.8,3.0]
[1754667650073,1.20013419,3938.2,3936.7,2.54019864]
[1754667650276,2.53936008,3938.0,3936.7,3.01337341]
[1754667650462,2.53948905,3937.8,3936.8,9.561318]
[1754667650640,2.53999808,3937.1,3936.2,2.54046676]
[1754667650840,7.11806068,3937.0,3936.2,2.54051581]
[1754667651093,4.576,3936.9,3935.8,0.8756]
[1754667651373,2.53997148,3937.1,3935.7,0.4732]
[1754667651578,2.54005441,3937.0,3936.3,2.5404526]
[1754667651742,2.54005441,3937.0,3935.5,5.54092951]
[1754667651743,5.13404806,3937.0,3936.1,0.90100585]
[1754667652069,5.13404806,3937.0,3936.1,0.8756]
[1754667652238,5.13404806,3937.0,3936.6,2.54022766]
[1754667652239,4.573,3937.0,3936.6,2.54022766]
[1754667652441,4.573,3937.0,3936.6,2.54024532]
[1754667652639,4.573,3937.0,3936.9,0.1272]
[1754667652878,4.573,3937.0,3936.2,0.4732]
[1754667653075,4.573,3937.0,3935.4,0.4024]
[1754667653277,4.573,3937.0,3936.1,2.54053739]
[1754667653278,0.53333811,3936.9,3936.1,2.54053739]
[1754667653492,3.07359827,3936.8,3936.0,2.54063224]
[1754667653695,2.54034912,3936.5,3935.5,3.01416164]
[1754667653877,4.582,3936.4,3935.5,0.4732]
[1754667654195,0.67057472,3937.0,3935.5,0.4732]
[1754667654392,5.78302888,3936.9,3935.5,0.4732]
[1754667654592,0.53345416,3936.8,3936.5,2.54032283]
[1754667654781,0.67057472,3937.0,3936.6,2.54026317]
[1754667654782,0.53345416,3936.7,3936.6,2.54026317]
[1754667655297,0.53529482,3936.7,3936.2,2.54052131]
[1754667655502,0.67057472,3937.1,3936.7,2.5401428]
[1754667655798,0.67057472,3937.1,3935.5,2.5409575]
[1754667655799,0.53518714,3937.0,3935.5,2.54095668]
[1754667656001,0.53518714,3936.9,3935.7,2.54084406]
[1754667656197,5.25057472,3937.0,3936.5,2.54032311]
[1754667656198,0.53518714,3936.8,3936.5,2.54032311]
[1754667656401,0.53518714,3936.8,3935.4,0.8334]
[1754667656402,0.53518714,3936.7,3935.4,0.8334]
[1754667656560,0.53518714,3936.6,3935.4,3.0]
[1754667656760,0.53518714,3936.6,3935.2,0.001]
[1754667656761,0.67057472,3936.3,3935.2,0.001]
[1754667656966,2.54073423,3935.9,3935.2,0.001]
[1754667657313,2.54086264,3935.7,3935.2,0.001]
[1754667657460,5.11618714,3935.6,3935.2,2.54215764]
[1754667657665,0.53518714,3935.5,3935.2,2.54216441]
[1754667657878,0.53518714,3935.4,3935.2,0.001]
[1754667658078,3.21130307,3935.9,3935.2,0.001]
[1754667658079,0.66037472,3935.9,3935.2,0.432]
[1754667658276,0.53482834,3935.8,3935.5,2.54095497]
[1754667658479,4.581,3936.2,3935.2,0.001]
[1754667658480,0.53482834,3935.7,3935.2,0.001]
[1754667658676,0.90816212,3936.4,3935.2,0.001]
[1754667658677,0.53480811,3935.6,3935.4,10.6397108]
[1754667658966,0.53481041,3935.5,3935.4,10.6397108]
[1754667659170,0.53470978,3936.1,3935.4,13.18073614]
[1754667659371,0.53470978,3936.0,3935.4,10.6397108]
[1754667659612,0.53470978,3935.9,3935.5,2.54095615]
[1754667659814,0.53470978,3935.8,3935.4,10.6397108]
[1754667659979,4.581,3936.3,3935.4,11.0421108]
[1754667660305,1.54581882,3936.8,3935.4,11.0421108]
[1754667660306,0.53470474,3936.2,3935.5,2.842]
[1754667660472,0.90816212,3936.9,3935.5,2.842]
[1754667660473,0.53470474,3936.8,3936.1,2.54058585]
[1754667660668,1.21153,3937.3,3936.6,2.54026317]
[1754667660669,0.53470474,3936.7,3936.6,2.54026317]
[1754667660894,4.571,3937.9,3936.6,11.4731108]
[1754667661099,0.53493264,3937.6,3936.6,11.4731108]
[1754667661300,0.53495639,3937.5,3936.6,13.17996402]
[1754667661614,0.90816212,3938.3,3936.6,11.0707108]
[1754667661768,4.57,3937.9,3936.6,11.0707108]
[1754667662123,4.57,3937.9,3935.7,5.54081581]
[1754667662124,1.47785668,3937.6,3935.7,11.0421108]
[1754667662408,0.55,3937.4,3935.8,23.018783]
[1754667662571,2.53992626,3937.2,3936.0,10.6397108]
[1754667662772,7.64700531,3937.1,3936.0,13.18034676]
[1754667663004,0.53505606,3937.0,3936.0,10.6397108]
[1754667663178,0.9431,3937.3,3936.5,2.54029105]
[1754667663179,5.10605606,3936.9,3936.5,2.54029105]
[1754667663394,0.53505606,3936.8,3936.5,0.431]
[1754667663580,0.002,3937.7,3936.8,0.1272]
[1754667663581,4.569,3937.1,3936.8,0.1272]
[1754667663788,2.54006959,3936.9,3936.8,0.1272]
[1754667664106,3.07587428,3936.9,3936.8,0.1272]
[1754667664288,4.47890469,3936.9,3935.1,0.04]
[1754667664482,0.1272,3936.2,3935.6,0.1272]
[1754667664699,0.5358278,3936.1,3935.8,0.1272]
[1754667664869,0.5358278,3936.1,3935.4,2.5410327]
[1754667664870,2.54055361,3936.2,3936.0,0.1272]
[1754667665188,0.1272,3936.6,3936.0,0.1272]
[1754667665371,0.5358983,3936.5,3936.0,0.1272]
[1754667665571,0.1272,3936.3,3935.7,0.1272]
[1754667665810,0.1272,3936.3,3935.6,0.1272]
[1754667666424,4.589,3936.5,3935.3,10.6397108]
[1754667666425,4.589,3936.5,3936.1,0.1272]
[1754667666576,0.1272,3936.8,3936.1,0.1272]
[1754667666774,0.53591315,3936.7,3936.1,0.1272]
[1754667667015,5.12091315,3936.6,3935.4,0.431]
[1754667667173,4.583,3936.5,3935.6,2.54090862]
[1754667667374,4.583,3936.6,3935.9,2.54066949]
[1754667667606,4.583,3936.6,3936.0,2.54064916]
[1754667667773,4.58,3936.7,3935.9,11.0707108]
[1754667668505,0.53600791,3937.2,3936.6,2.54022952]
[1754667668708,0.53600791,3937.1,3936.0,2.5406504]
[1754667669011,0.002,3937.7,3936.4,2.54038175]
[1754667669200,0.002,3937.7,3936.8,10.6397108]
[1754667669201,4.574,3937.6,3936.8,10.6397108]
[1754667669579,4.574,3937.6,3937.2,2.53981231]
[1754667669891,4.574,3937.6,3936.8,10.6397108]
[1754667670210,4.574,3937.6,3937.1,2.53988772]
[1754667670413,4.574,3937.6,3937.2,2.53986465]
[1754667670586,0.002,3937.7,3936.8,10.6397108]
[1754667670789,2.57916205,3938.4,3931.8,5.87795905]
[1754667670790,0.04,3938.4,3938.0,2.53936008]
[1754667670973,0.04,3938.4,3937.4,13.1794126]
[1754667670974,0.04,3938.4,3937.6,0.431]
[1754667671313,0.04,3938.4,3938.3,2.53916664]
[1754667672107,0.04,3938.4,3938.3,3.37056664]
[1754667672306,0.04,3938.4,3938.3,2.97016664]
[1754667672716,0.04,3938.4,3938.3,2.53916664]
[1754667673071,0.04,3938.4,3938.3,2.97016664]
[1754667673316,0.04,3938.4,3938.3,2.53916664]
[1754667673683,0.04,3938.4,3937.3,0.431]
[1754667673896,0.04,3938.4,3938.3,2.53916664]
[1754667674317,0.002,3938.9,3938.8,2.53884431]
[1754667674500,0.002,3938.9,3938.8,13.17855511]
[1754667674709,1e-08,3938.9,3938.8,26.02300311]
[1754667674904,4.571,3940.0,3939.9,2.53813548]
[1754667675118,6.101,3940.3,3939.9,2.53813548]
[1754667675119,6.101,3940.3,3940.2,2.53794223]
[1754667675321,0.002,3940.6,3940.3,2.53787782]
[1754667675482,0.002,3940.6,3940.3,13.17758862]
[1754667677017,0.002,3940.6,3940.3,13.30478862]
[1754667678015,0.002,3940.6,3940.3,19.74589862]
[1754667678182,0.002,3940.6,3940.3,18.73751562]
[1754667678813,0.002,3940.6,3940.3,16.30478862]
[1754667679005,0.002,3940.6,3940.3,13.30478862]
[1754667679632,0.042,3940.4,3940.3,0.1272]
[1754667680127,0.042,3940.4,3940.3,13.30478862]
[1754667680614,0.042,3940.4,3940.3,13.73578862]
[1754667680922,0.042,3940.4,3940.3,13.30478862]
[1754667681917,0.042,3940.4,3940.3,16.73578862]
[1754667682091,4.555,3941.2,3940.3,16.73578862]
[1754667682092,4.555,3941.2,3940.7,2.53759932]
[1754667682427,4.555,3941.2,3941.1,13.30427346]
[1754667682922,4.555,3941.2,3941.1,2.66456266]
[1754667683121,0.002,3941.2,3941.1,2.66456266]
[1754667683621,0.9451,3941.2,3941.1,0.1272]
[1754667683988,2.53751229,3940.9,3939.9,2.53812969]
[1754667684188,0.1272,3941.1,3940.6,0.1272]
[1754667684386,2.53736266,3941.1,3941.0,0.1272]
[1754667684616,2.53736266,3941.1,3940.4,10.6397108]
[1754667684617,2.53740574,3941.1,3940.4,10.6397108]
[1754667684801,0.002,3941.2,3940.7,0.1272]
[1754667685210,2.53755582,3940.8,3940.4,10.6397108]
[1754667685416,0.9171,3940.7,3940.5,0.1272]
[1754667685993,0.1272,3941.0,3939.7,10.6397108]
[1754667686193,0.1272,3941.0,3940.4,0.1272]
[1754667686393,0.1272,3941.0,3940.9,0.1272]
[1754667686394,4.528,3941.0,3940.9,0.1272]
[1754667686906,2.53767235,3940.7,3939.9,2.53809192]
[1754667687227,2.53769856,3940.6,3940.4,0.1272]
[1754667687622,0.9171,3940.5,3940.4,0.1272]
[1754667687795,0.9171,3940.6,3940.4,0.1272]
[1754667688224,0.1272,3941.0,3940.4,0.1272]
[1754667688404,0.002,3941.2,3940.4,0.1272]
[1754667688405,4.521,3940.9,3940.6,2.53763865]
[1754667688606,0.1292,3941.2,3940.3,10.6397108]
[1754667688607,0.002,3941.2,3940.9,0.1272]
[1754667688808,0.002,3941.2,3941.1,2.53736266]
[1754667689100,0.002,3941.2,3941.1,2.66456266]
[1754667689906,0.002,3941.2,3941.1,0.1272]
[1754667690105,0.9191,3941.2,3941.1,0.1272]
[1754667690323,3.45639828,3941.2,3941.1,0.1272]
[1754667690801,0.9191,3941.2,3939.7,10.6397108]
[1754667690995,0.1272,3940.9,3940.4,0.1272]
[1754667691197,2.53781811,3940.4,3940.2,0.1272]
[1754667691424,0.9171,3940.4,3940.2,0.1272]
[1754667691724,2.53794521,3940.2,3940.0,0.1272]
[1754667691927,2.53800664,3940.1,3940.0,0.1272]
[1754667692126,0.9171,3940.1,3938.7,10.6397108]
[1754667692433,2.53833046,3939.6,3939.2,0.1272]
[1754667692727,3.45550191,3939.5,3938.8,2.53882482]
[1754667692900,0.9171,3939.5,3939.0,0.1272]
[1754667693101,0.9171,3939.5,3939.0,2.66589529]
[1754667693298,4.507,3939.4,3939.0,0.1272]
[1754667693621,0.1272,3939.7,3939.3,2.53851458]
[1754667693926,0.1272,3939.7,3938.7,13.17856965]
[1754667693927,0.9171,3939.7,3938.7,10.6397108]
[1754667694129,4.507,3940.0,3939.6,0.1272]
[1754667694331,4.507,3940.0,3939.8,2.53818479]
[1754667694627,0.1272,3940.6,3940.2,2.53789643]
[1754667694847,5.4221,3940.5,3939.3,10.6397108]
[1754667695012,2.5379219,3940.3,3940.1,0.1272]
[1754667695342,0.002,3941.2,3940.1,0.40476997]
[1754667695546,4.504,3941.1,3940.4,2.53781024]
[1754667695857,4.504,3941.1,3940.0,3.0]
[1754667696058,4.504,3941.1,3940.2,3.0]
[1754667696220,4.504,3941.1,3941.0,2.53742704]
[1754667696856,4.504,3941.1,3940.0,3.0]
[1754667697056,4.504,3941.1,3941.0,2.53742704]
[1754667697228,4.504,3941.1,3940.9,2.53747216]
[1754667697407,4.504,3941.1,3939.9,10.6397108]
[1754667697408,4.502,3941.0,3940.7,2.53757626]
[1754667697615,4.502,3941.0,3939.9,10.6397108]
[1754667697914,4.502,3941.0,3939.4,3.0]
[1754667697915,0.9171,3940.9,3939.4,3.0]
[1754667698114,3.45459143,3940.9,3940.1,2.53796754]
[1754667698344,2.53755788,3940.8,3940.1,2.53796754]
[1754667698613,0.9171,3940.8,3939.4,10.6397108]
[1754667698911,2.53778447,3940.5,3939.0,2.53871541]
[1754667699116,0.9171,3940.7,3938.5,0.001]
[1754667699341,0.002,3940.9,3938.5,10.6407108]
[1754667699342,0.55,3940.2,3938.5,10.6407108]
[1754667699616,0.9171,3940.1,3938.5,0.001]
[1754667699810,2.53847657,3939.4,3938.6,2.53897323]
[1754667700012,4.5,3939.3,3938.5,10.6407108]
[1754667700247,4.5,3939.2,3938.5,0.001]
[1754667700413,0.9171,3939.3,3938.5,10.6407108]
[1754667700721,4.499,3939.2,3938.6,2.53897323]
[1754667700948,4.499,3939.2,3938.7,2.53890826]
[1754667701255,3.0,3940.7,3938.5,10.6407108]
[1754667701256,4.497,3939.6,3939.0,10.6397108]
[1754667701413,4.495,3939.5,3938.5,0.001]
[1754667701611,0.9171,3939.7,3938.5,0.001]
[1754667701612,4.498,3939.4,3938.5,0.001]
[1754667701851,2.53861171,3939.2,3938.5,0.001]
[1754667702154,5.4151,3939.4,3938.6,2.53897323]
[1754667702362,2.5386656,3939.1,3938.5,0.001]
[1754667702513,5.4151,3939.4,3938.5,0.001]
[1754667702718,2.53853862,3939.3,3938.5,0.001]
[1754667702947,5.4151,3939.4,3938.9,0.001]
[1754667703212,0.9171,3939.3,3938.9,0.001]
[1754667703633,0.9171,3939.2,3938.9,0.001]
[1754667704221,0.9171,3939.1,3938.9,0.001]
[1754667704949,0.9171,3939.0,3938.9,0.001]
[1754667705148,4.483,3939.0,3938.9,2.53977986]
[1754667705441,4.48,3939.0,3938.9,0.001]
[1754667705855,4.48,3939.0,3938.9,2.53977986]
[1754667706361,4.476,3939.0,3938.9,2.53977986]
[1754667707157,4.471,3939.0,3938.9,0.1282]
[1754667707652,0.9171,3939.5,3939.3,2.53851522]
[1754667707945,4.47,3939.4,3939.3,2.53852207]
[1754667708152,4.468,3939.4,3939.3,2.53852207]
[1754667708937,4.468,3939.4,3939.3,0.1272]
[1754667708938,4.463,3939.4,3939.3,0.1272]
[1754667709249,4.463,3939.4,3939.3,2.66572207]
[1754667709411,6.5283,3940.8,3940.2,2.53793962]
[1754667709616,5.3801,3940.7,3939.3,0.1272]
[1754667709818,0.1272,3940.4,3939.9,0.1272]
[1754667710019,0.1272,3940.1,3939.6,0.1272]
[1754667710227,2.53813548,3939.9,3939.6,0.1272]
[1754667710440,5.3781,3940.0,3938.9,0.001]
[1754667710441,3.45532557,3939.8,3938.9,0.001]
[1754667710752,2.53858011,3939.3,3938.9,0.1282]
[1754667710951,6.99859615,3939.2,3938.9,0.1282]
[1754667711476,2.66561513,3939.5,3938.9,0.1282]
[1754667711477,0.1272,3939.5,3939.3,2.53850478]
[1754667711770,4.456,3939.4,3939.3,2.53846353]
[1754667712268,4.456,3939.4,3939.3,2.66566353]
[1754667712748,5.5003,3939.4,3938.9,0.001]
[1754667712924,0.1272,3939.2,3938.9,0.001]
[1754667713326,0.9171,3939.1,3938.9,0.001]
[1754667713581,15.2927108,3939.0,3936.1,2.30292857]
[1754667713863,2.54052131,3936.2,3936.1,0.04]
[1754667714063,4.481,3936.2,3936.1,0.04]
[1754667714272,7.90972131,3936.2,3936.1,0.04]
[1754667715271,3.42872131,3936.2,3936.1,0.04]
[1754667715481,7.90872131,3936.2,3936.1,0.04]
[1754667716163,3.42872131,3936.2,3936.1,0.04]
[1754667716665,7.90272131,3936.2,3936.1,0.04]
[1754667717758,3.42872131,3936.2,3936.1,0.04]
[1754667717963,3.55592131,3936.2,3936.1,0.04]
[1754667718279,0.5845,3936.2,3936.1,0.04]
[1754667718441,0.1272,3936.2,3936.1,0.04]
[1754667718848,4.5942,3936.2,3936.1,0.04]
[1754667719257,4.467,3936.2,3936.1,0.04]
[1754667719584,5.3552,3936.2,3936.1,0.04]
[1754667719933,0.1272,3936.3,3936.1,0.04]
[1754667720244,4.463,3936.2,3936.1,0.04]
[1754667720454,4.463,3936.2,3936.1,2.58058585]
[1754667720672,4.463,3936.2,3936.1,0.04]
[1754667720987,0.1272,3936.3,3936.1,0.04]
[1754667721164,0.1272,3937.2,3936.9,2.5400657]
[1754667721384,0.1272,3937.2,3937.1,2.53994056]
[1754667721534,4.5882,3937.2,3937.0,2.53995813]
[1754667721942,4.46,3937.1,3937.0,2.53995813]
[1754667722150,4.46,3937.1,3936.6,0.1272]
[1754667722347,0.1272,3937.2,3936.6,0.1272]
[1754667722642,4.455,3937.1,3936.8,0.1272]
[1754667722849,4.455,3937.0,3936.8,0.1272]
[1754667723044,0.1272,3937.4,3936.8,2.66733411]
[1754667723045,4.454,3936.9,3936.8,2.66733411]
[1754667723253,4.452,3936.9,3936.8,0.1272]
[1754667723869,4.452,3936.9,3936.5,2.54027316]
[1754667724066,4.452,3936.9,3936.6,0.1272]
[1754667724778,0.1272,3937.2,3936.6,0.1272]
[1754667724779,4.445,3936.8,3936.6,0.1272]
[1754667724945,4.445,3937.0,3936.6,10.6397108]
[1754667725141,6.5299,3937.9,3937.2,0.1272]
[1754667725345,6.099,3937.9,3937.6,2.53957242]
[1754667725647,6.099,3937.9,3937.8,2.53948905]
[1754667725992,0.4309,3938.9,3937.9,2.53942456]
[1754667726196,4.441,3938.8,3938.7,2.53890877]
[1754667726341,0.1272,3938.8,3938.6,2.53897114]
[1754667726681,0.04,3939.4,3937.4,2.53972663]
[1754667726682,0.1272,3939.3,3939.2,2.53858651]
[1754667726838,0.1672,3939.4,3939.3,2.53852207]
[1754667727044,4.6062,3939.4,3939.3,2.53852207]
[1754667727444,4.479,3939.4,3939.3,2.53852207]
[1754667727866,0.04,3939.4,3939.3,2.53852207]
[1754667728080,4.475,3939.4,3939.3,2.53852207]
[1754667728283,4.475,3939.4,3939.2,2.6657686]
[1754667728543,4.475,3939.4,3939.2,0.1272]
[1754667728691,4.475,3939.4,3935.3,3.18114405]
[1754667728692,0.8882,3939.3,3936.8,0.4595]
[1754667728864,0.8882,3939.2,3937.0,2.54000508]
[1754667729188,0.8882,3939.2,3937.6,10.6397108]
[1754667729351,0.4309,3939.1,3937.6,10.6397108]
[1754667729549,0.4309,3939.1,3937.1,3.0]
[1754667729550,0.8882,3939.1,3937.1,3.0]
[1754667729808,0.8882,3939.0,3937.0,10.6397108]
[1754667729975,6.97579275,3938.9,3937.9,2.53937161]
[1754667730286,4.437,3938.9,3937.1,0.4595]
[1754667730447,4.437,3938.9,3936.5,2.5403277]
[1754667730448,0.55,3938.7,3936.5,2.5403277]
[1754667730651,2.53967365,3937.6,3936.1,13.22027944]
[1754667730851,4.436,3937.5,3936.3,2.54045662]
[1754667731089,6.97579854,3937.4,3936.3,2.54045662]
[1754667731293,6.97579854,3937.4,3936.4,2.54037667]
[1754667731462,6.97579854,3937.4,3936.7,2.54014974]
[1754667731463,4.436,3937.4,3936.7,2.54014974]
[1754667731652,4.436,3937.4,3936.1,10.6797108]
[1754667731986,2.53981154,3937.3,3936.5,2.54031771]
[1754667732283,4.436,3937.4,3936.1,10.6797108]
[1754667732510,4.432,3937.3,3936.7,10.6397108]
[1754667732690,2.99679654,3937.8,3937.0,2.53995899]
[1754667733003,0.4309,3938.1,3936.5,0.02540327]
[1754667733205,0.4309,3938.8,3937.1,10.6397108]
[1754667733409,6.099,3939.1,3938.5,2.53902237]
[1754667733633,6.099,3939.1,3937.8,2.53948905]
[1754667733634,4.426,3939.0,3938.0,2.53932155]
[1754667733919,0.4309,3938.9,3937.7,2.53950954]
[1754667734075,0.4309,3938.9,3936.6,2.5402123]
[1754667734076,0.8882,3938.9,3937.1,2.53994056]
[1754667734375,0.8882,3938.8,3937.5,10.6397108]
[1754667734580,0.8882,3938.8,3938.4,2.53904135]
[1754667734774,0.8882,3938.8,3938.1,2.5392772]
[1754667734981,0.8882,3938.8,3937.9,2.53941178]
[1754667735215,0.8882,3938.8,3938.4,2.53909583]
[1754667735518,0.8882,3938.8,3937.2,0.4595]
[1754667735686,0.8882,3938.8,3938.5,2.53897738]
[1754667735886,0.8882,3938.8,3937.2,0.4595]
[1754667735887,0.8882,3938.7,3937.5,2.53968253]
[1754667736209,0.8882,3938.7,3937.2,0.4595]
[1754667736210,0.8882,3938.7,3938.3,2.5391104]
[1754667736407,0.8882,3938.7,3937.2,2.99935865]
[1754667736599,0.8882,3938.7,3938.3,2.53915461]
[1754667736800,0.8882,3938.7,3938.5,2.53899128]
[1754667736998,4.8569,3939.0,3937.4,2.53974704]
[1754667737202,4.8569,3939.0,3938.6,2.53893614]
[1754667737403,5.3142,3939.0,3938.7,2.53885582]
[1754667737609,5.3142,3939.0,3938.8,2.53882824]
[1754667737788,6.099,3939.1,3937.5,3.0]
[1754667737989,6.099,3939.1,3938.9,2.53877986]
[1754667737990,4.414,3939.0,3938.9,2.53877986]
[1754667738188,6.099,3939.1,3938.9,2.53877986]
[1754667738189,6.099,3939.1,3939.0,2.53871541]
[1754667738723,10.51,3939.1,3939.0,2.66591541]
[1754667739924,0.04,3940.4,3940.3,2.53787782]
[1754667740124,1e-08,3940.4,3940.3,2.66507782]
[1754667740622,4.40900001,3940.4,3940.3,2.66507782]
[1754667742123,4.40900001,3940.4,3940.3,0.1272]
[1754667742290,4.40900001,3940.4,3940.0,0.1272]
[1754667742491,5.2922,3940.3,3938.6,0.4004]
[1754667742705,0.1272,3940.0,3939.6,2.53832228]
[1754667742923,0.4309,3939.9,3938.2,13.6397108]
[1754667743102,0.1272,3939.7,3939.6,2.53832876]
[1754667743296,1.0154,3939.7,3939.2,2.6657849]
[1754667743591,1.0154,3939.7,3938.4,2.53910217]
[1754667743592,1e-08,3940.4,3938.4,2.53907736]
[1754667743593,5.2922,3939.6,3938.4,2.53907736]
[1754667743956,0.55000001,3940.4,3937.4,0.4595]
[1754667743957,5.2922,3939.5,3937.4,0.4595]
[1754667744090,0.55,3939.3,3937.4,2.53973527]
[1754667744292,0.55,3939.3,3937.1,10.6797108]
[1754667744293,7.0443,3939.2,3938.2,2.53918436]
[1754667744509,3.9473,3939.1,3937.1,0.04]
[1754667744708,2.53903173,3938.6,3937.7,2.53949179]
[1754667744914,4.956,3939.0,3937.9,2.53941194]
[1754667744915,5.3523,3938.5,3937.9,2.53941194]
[1754667745110,4.405,3938.4,3938.1,2.53929463]
[1754667745331,0.9473,3939.1,3937.4,2.53974704]
[1754667745526,0.9473,3939.1,3938.7,2.53885171]
[1754667745527,4.404,3939.0,3938.7,2.53885171]
[1754667745824,4.404,3939.0,3938.9,2.53877986]
[1754667747672,0.002,3939.6,3939.5,2.53839319]
[1754667747807,4.404,3939.6,3939.5,2.53839319]
[1754667748004,0.002,3939.6,3939.5,2.53839319]
[1754667748425,4.403,3939.6,3939.5,2.53839319]
[1754667748702,1e-08,3939.6,3939.5,3.39439319]
[1754667748944,1e-08,3939.6,3939.5,2.53839319]
[1754667749438,1e-08,3939.6,3939.5,5.99399319]
[1754667750237,1e-08,3939.6,3939.5,2.53839319]
[1754667750999,1e-08,3939.6,3939.5,2.99399319]
[1754667751550,1e-08,3939.6,3939.5,2.53839319]
[1754667752414,1e-08,3939.6,3939.5,2.99399319]
[1754667752651,1e-08,3939.6,3939.5,14.03410399]
[1754667753009,1e-08,3939.6,3939.5,16.63370399]
[1754667753398,1e-08,3939.6,3939.5,5.53839319]
[1754667753602,1e-08,3939.6,3939.5,2.53839319]
[1754667753828,4.38600001,3939.6,3939.5,2.66559319]
[1754667754032,4.38600001,3939.6,3939.5,2.53839319]
[1754667754033,4.86270001,3939.6,3939.5,2.53839319]
[1754667754335,1e-08,3939.6,3939.5,2.53839319]
[1754667754537,1e-08,3939.6,3939.5,2.69097712]